bitfinex/quotes_BTCUSD_20240905
["timestamp","ask_amount","ask_price","bid_price","bid_amount"]
[1725499592289,1.03964681,58152.0,58151.0,0.40900626]
[1725499592793,1.03964681,58152.0,58151.0,0.53802399]
[1725499593025,1.03964681,58152.0,58151.0,0.40900626]
[1725499593489,1.03964681,58152.0,58151.0,0.53802399]
[1725499593941,1.03964681,58152.0,58151.0,0.60382399]
[1725499595315,1.03964681,58152.0,58151.0,0.47480626]
[1725499595727,1.03964681,58152.0,58151.0,0.60386376]
[1725499596171,1.03964681,58152.0,58151.0,0.47480844]
[1725499598150,0.69152751,58152.0,58151.0,0.55240844]
[1725499602664,0.69152751,58152.0,58151.0,1.24189567]
[1725499605514,0.79889881,58152.0,58151.0,1.24206536]
[1725499605743,0.79889881,58152.0,58151.0,1.17626536]
[1725499605946,0.79889881,58152.0,58151.0,1.17625696]
[1725499607314,0.000815,58152.0,58151.0,1.77993942]
[1725499607536,0.120339,58169.0,58163.0,0.1405]
[1725499607750,0.01654305,58170.0,58165.0,0.0613]
[1725499607995,0.01654305,58170.0,58167.0,0.0792]
[1725499608222,0.361017,58169.0,58168.0,0.38187558]
[1725499608454,0.01654305,58170.0,58168.0,0.46274364]
[1725499608675,0.120336,58171.0,58169.0,0.38187558]
[1725499608950,0.120336,58171.0,58170.0,0.40143751]
[1725499609449,0.120336,58171.0,58170.0,0.53041057]
[1725499610131,0.220336,58171.0,58170.0,0.53041057]
[1725499610356,0.226336,58171.0,58170.0,0.40243751]
[1725499610981,0.230336,58171.0,58170.0,0.40231428]
[1725499611420,0.230336,58171.0,58170.0,0.50542471]
[1725499611865,0.230336,58171.0,58170.0,0.40231428]
[1725499612318,0.230336,58171.0,58170.0,0.50539671]
[1725499613155,0.471005,58171.0,58170.0,0.50539671]
[1725499613369,0.471005,58171.0,58170.0,0.40231428]
[1725499613594,0.465005,58171.0,58170.0,0.40131428]
[1725499613811,0.461005,58171.0,58170.0,0.40131428]
[1725499614021,0.463005,58171.0,58170.0,0.40131428]
[1725499614238,0.461005,58171.0,58170.0,0.47860896]
[1725499614439,0.462005,58171.0,58170.0,0.47861086]
[1725499614651,0.462005,58171.0,58170.0,0.09685661]
[1725499614883,0.462005,58171.0,58170.0,0.02056193]
[1725499615297,0.101,58171.0,58170.0,0.02056193]
[1725499616020,0.46282,58171.0,58170.0,0.02056193]
[1725499616243,0.46282,58171.0,58170.0,0.07208222]
[1725499616456,0.46282,58171.0,58170.0,0.02056193]
[1725499617536,0.8108603,58171.0,58170.0,0.02056193]
[1725499618485,0.703489,58171.0,58170.0,0.02056193]
[1725499619771,0.703489,58171.0,58170.0,0.001]
[1725499623599,0.46282,58171.0,58170.0,0.0673]
[1725499624053,0.46282,58171.0,58170.0,0.08686193]
[1725499624920,0.101815,58171.0,58170.0,0.08686193]
[1725499625165,0.001815,58171.0,58170.0,0.21798222]
[1725499625382,0.101815,58171.0,58170.0,0.21798222]
[1725499626033,0.222149,58171.0,58170.0,0.21798222]
[1725499626483,0.101815,58171.0,58170.0,0.21798222]
[1725499627420,0.250596,58189.0,58170.0,0.21798222]
[1725499627421,0.241449,58180.0,58171.0,0.0812]
[1725499627639,0.120321,58178.0,58177.0,0.0812]
[1725499627853,0.120321,58178.0,58177.0,0.54013297]
[1725499628071,0.120321,58178.0,58177.0,0.55967343]
[1725499628317,0.120321,58178.0,58177.0,0.17792086]
[1725499628534,0.01756898,58180.0,58177.0,0.23952086]
[1725499628747,0.13788598,58180.0,58178.0,0.05143993]
[1725499628954,0.1,58179.0,58178.0,0.05143993]
[1725499629171,0.220318,58179.0,58178.0,0.05143993]
[1725499630023,0.220318,58179.0,58178.0,0.05142923]
[1725499630240,0.220318,58179.0,58177.0,0.19422923]
[1725499630455,0.12032,58178.0,58177.0,0.19422923]
[1725499630670,0.22032,58178.0,58177.0,0.19422923]
[1725499631104,0.22032,58178.0,58177.0,0.1428]
[1725499631320,0.22032,58178.0,58177.0,0.19421216]
[1725499631762,0.22132,58178.0,58177.0,0.20521216]
[1725499632645,0.46296,58178.0,58177.0,0.21521216]
[1725499633316,0.46296,58178.0,58177.0,0.1638]
[1725499633529,0.46296,58178.0,58177.0,0.18334046]
[1725499640212,0.46296,58178.0,58177.0,0.23475262]
[1725499640448,0.46296,58178.0,58177.0,0.18334046]
[1725499641629,0.46296,58178.0,58177.0,0.23475262]
[1725499641856,0.704415,58178.0,58177.0,0.23475262]
[1725499644150,0.704415,58178.0,58177.0,0.18334046]
[1725499645826,0.704415,58178.0,58177.0,0.26048431]
[1725499646328,0.704415,58178.0,58177.0,0.6421815]
[1725499647483,0.704415,58178.0,58177.0,0.56503765]
[1725499648385,0.704415,58178.0,58177.0,0.66789612]
[1725499648607,0.704415,58178.0,58177.0,0.56503765]
[1725499648824,0.704415,58178.0,58177.0,0.66789612]
[1725499649282,0.002815,58178.0,58177.0,0.79273095]
[1725499649506,3.01e-06,58181.0,58178.0,0.1463]
[1725499649725,0.120317,58180.0,58179.0,0.5314345]
[1725499649974,3.01e-06,58181.0,58179.0,0.48263152]
[1725499650197,0.12031701,58181.0,58180.0,0.52799719]
[1725499650411,3.01e-06,58181.0,58180.0,0.52799719]
[1725499650635,0.12031701,58181.0,58180.0,0.54752846]
[1725499650867,3.01e-06,58181.0,58180.0,0.54752846]
[1725499651795,3.01e-06,58181.0,58180.0,0.54745562]
[1725499652026,0.00100301,58181.0,58180.0,0.54745562]
[1725499652267,0.00200301,58181.0,58180.0,0.54745562]
[1725499652754,0.00100301,58181.0,58180.0,0.54745562]
[1725499652973,0.00300301,58181.0,58180.0,0.56145562]
[1725499655694,3.01e-06,58181.0,58180.0,0.54745562]
[1725499655814,0.00200301,58181.0,58180.0,0.56945547]
[1725499656490,0.00200301,58181.0,58180.0,1.03777477]
[1725499656933,0.00200301,58181.0,58180.0,1.27840677]
[1725499657174,0.00200301,58181.0,58180.0,1.99720952]
[1725499657410,0.00200301,58181.0,58180.0,2.08332815]
[1725499657670,0.00200301,58181.0,58180.0,2.09948019]
[1725499658109,3.01e-06,58181.0,58180.0,2.07748019]
[1725499658331,3.01e-06,58181.0,58180.0,2.08948019]
[1725499658552,3.01e-06,58181.0,58180.0,2.10348019]
[1725499658802,3.01e-06,58181.0,58180.0,2.09148019]
[1725499659016,3.01e-06,58181.0,58180.0,2.09147945]
[1725499659249,3.01e-06,58181.0,58180.0,2.10547945]
[1725499659492,0.221109,58191.0,58186.0,0.1413]
[1725499659713,0.221109,58191.0,58187.0,0.40457083]
[1725499659942,0.221109,58191.0,58188.0,0.3816242]
[1725499660199,0.221109,58191.0,58189.0,0.40112788]
[1725499660421,0.221109,58191.0,58190.0,0.3816242]
[1725499660655,0.221109,58191.0,58190.0,0.38159063]
[1725499660874,0.221109,58191.0,58190.0,0.46339124]
[1725499661091,0.100816,58191.0,58190.0,0.53969124]
[1725499661320,0.121109,58191.0,58190.0,0.53969124]
[1725499661558,0.221109,58191.0,58190.0,0.53969124]
[1725499662750,0.461696,58191.0,58190.0,0.54869124]
[1725499662986,0.461696,58191.0,58190.0,0.55669124]
[1725499669580,0.461696,58191.0,58190.0,0.49439124]
[1725499670954,0.702283,58191.0,58190.0,0.49439353]
[1725499671895,0.100816,58191.0,58190.0,0.55439353]
[1725499672121,0.120291,58192.0,58190.0,0.55439353]
[1725499672335,0.1,58191.0,58190.0,0.17280061]
[1725499672552,0.1,58191.0,58190.0,0.68311007]
[1725499672768,0.1,58191.0,58190.0,0.49439113]
[1725499672769,0.701467,58191.0,58190.0,0.49439113]
[1725499672983,0.701467,58191.0,58190.0,0.48539113]
[1725499673445,0.46088,58191.0,58190.0,0.48539113]
[1725499673880,0.46088,58191.0,58190.0,0.49439113]
[1725499674097,0.701467,58191.0,58190.0,0.49439113]
[1725499675184,0.701467,58191.0,58190.0,0.48539113]
[1725499675400,0.701467,58191.0,58190.0,0.5883958]
[1725499675657,0.701467,58191.0,58190.0,0.5983958]
[1725499678982,0.702282,58191.0,58190.0,0.5983958]
[1725499680817,0.702282,58191.0,58190.0,0.59841925]
[1725499682130,0.702282,58191.0,58190.0,0.49540336]
[1725499691203,0.702282,58191.0,58190.0,1.18417106]
[1725499691204,0.602282,58191.0,58190.0,1.18417106]
[1725499691420,0.602282,58191.0,58190.0,0.62434536]
[1725499691848,0.602282,58191.0,58190.0,0.62597536]
[1725499692316,0.602282,58191.0,58190.0,0.49703336]
[1725499693396,0.702282,58191.0,58190.0,0.49703336]
[1725499693633,0.687282,58191.0,58190.0,0.49703336]
[1725499695468,0.000815,58191.0,58190.0,0.9219189]
[1725499695714,0.000815,58191.0,58190.0,1.48618253]
[1725499695942,1e-08,58191.0,58190.0,1.74292397]
[1725499696421,1e-08,58191.0,58190.0,1.97166781]
[1725499696637,1e-08,58191.0,58190.0,1.73292397]
[1725499696848,1e-08,58191.0,58190.0,1.73892397]
[1725499697087,1e-08,58191.0,58190.0,2.00154753]
[1725499697366,1e-08,58191.0,58190.0,1.77292397]
[1725499697605,1e-08,58191.0,58190.0,2.00146461]
[1725499698504,1e-08,58191.0,58190.0,1.77292397]
[1725499698804,1e-08,58191.0,58190.0,1.7367483]
[1725499699031,1e-08,58191.0,58190.0,1.77292018]
[1725499700567,1e-08,58191.0,58190.0,1.77270157]
[1725499701213,0.000815,58197.0,58195.0,0.120285]
[1725499701446,0.000815,58197.0,58196.0,1.0666583]
[1725499701666,0.000815,58197.0,58196.0,1.08614053]
[1725499702778,0.000815,58197.0,58196.0,1.09414053]
[1725499703214,0.000815,58197.0,58196.0,1.10314053]
[1725499705882,0.000815,58197.0,58196.0,1.33154875]
[1725499706314,0.000815,58197.0,58196.0,1.10314053]
[1725499708481,0.000815,58197.0,58196.0,1.71455553]
[1725499708704,0.000815,58197.0,58196.0,1.95512153]
[1725499708949,0.000815,58197.0,58196.0,1.99129079]
[1725499709191,0.00082,58200.0,58199.0,0.6193003]
[1725499709405,0.00082,58200.0,58199.0,1.81497081]
[1725499710551,0.00082,58200.0,58199.0,1.82897081]
[1725499710996,0.120259,58208.0,58204.0,0.120265]
[1725499711220,0.120259,58208.0,58207.0,0.0831]
[1725499711444,0.120256,58209.0,58207.0,0.4646092]
[1725499711657,0.120256,58209.0,58208.0,0.51019428]
[1725499711879,0.120256,58209.0,58208.0,0.40089903]
[1725499712109,0.1,58214.0,58208.0,0.40089903]
[1725499712110,0.2405,58212.0,58208.0,0.40089903]
[1725499712325,0.120252,58211.0,58209.0,0.48440039]
[1725499712550,0.120252,58211.0,58210.0,0.38145356]
[1725499712803,0.120252,58211.0,58210.0,0.4008929]
[1725499713021,0.25716655,58213.0,58210.0,0.4008929]
[1725499713224,0.220251,58212.0,58211.0,0.38145356]
[1725499713633,0.220251,58212.0,58211.0,0.09661601]
[1725499714074,0.220251,58212.0,58211.0,0.47806935]
[1725499714516,0.220251,58212.0,58211.0,0.10061601]
[1725499715494,0.1,58212.0,58211.0,0.16271601]
[1725499715731,0.220246,58214.0,58211.0,0.16271601]
[1725499715959,0.220246,58214.0,58213.0,0.0514369]
[1725499716177,0.1,58214.0,58213.0,0.0514369]
[1725499716402,0.23705696,58214.0,58213.0,0.07086705]
[1725499717068,0.23705696,58214.0,58213.0,0.01943015]
[1725499717069,0.1,58214.0,58213.0,0.01943015]
[1725499717283,0.1,58214.0,58213.0,0.02643015]
[1725499717499,0.220245,58214.0,58213.0,0.02643015]
[1725499718591,0.1,58214.0,58213.0,0.02643015]
[1725499718815,0.1165584,58215.0,58213.0,0.11673015]
[1725499719066,0.0165584,58215.0,58214.0,0.05141318]
[1725499719321,0.1,58215.0,58214.0,0.07084027]
[1725499719990,0.1,58215.0,58214.0,0.01942709]
[1725499720227,0.11655,58215.0,58214.0,0.01942709]
[1725499720461,0.01655,58215.0,58214.0,0.08832709]
[1725499720689,0.01655,58215.0,58214.0,0.20857209]
[1725499720929,0.12024,58217.0,58214.0,0.08832709]
[1725499721133,0.22024,58217.0,58215.0,0.45852453]
[1725499721343,0.01655504,58220.0,58216.0,0.84500636]
[1725499721634,0.01655504,58220.0,58219.0,0.12848737]
[1725499721867,0.0643,58228.0,58220.0,0.120232]
[1725499721868,0.120226,58224.0,58220.0,0.120232]
[1725499722086,0.120226,58224.0,58223.0,0.102748]
[1725499722311,0.25723681,58226.0,58224.0,0.0821]
[1725499722542,0.120223,58225.0,58224.0,0.0821]
[1725499722788,0.120223,58225.0,58224.0,0.13345925]
[1725499722999,0.220223,58225.0,58224.0,0.0821]
[1725499723212,0.220223,58225.0,58224.0,0.1334589]
[1725499723431,0.220223,58225.0,58224.0,0.0821]
[1725499723643,0.220223,58225.0,58224.0,0.15284247]
[1725499723854,0.220223,58225.0,58224.0,0.16084247]
[1725499724324,0.220223,58225.0,58224.0,0.10949648]
[1725499724546,0.120223,58225.0,58224.0,0.16083195]
[1725499725211,0.360669,58225.0,58224.0,0.16983195]
[1725499726559,0.01679081,58226.0,58224.0,0.11849648]
[1725499727038,0.1,58227.0,58224.0,0.11849648]
[1725499727259,0.241254,58229.0,58225.0,0.0664]
[1725499727485,0.241254,58229.0,58226.0,0.00343456]
[1725499727486,0.00082,58229.0,58226.0,0.00343456]
[1725499727747,0.121035,58229.0,58226.0,0.02282484]
[1725499727988,0.121035,58229.0,58226.0,0.01939035]
[1725499728460,0.00082,58229.0,58227.0,0.0832]
[1725499728670,0.00082,58229.0,58227.0,0.10258729]
[1725499729592,0.01785554,58229.0,58227.0,0.10258729]
[1725499729809,0.00082,58229.0,58227.0,0.10258729]
[1725499730030,0.00082,58229.0,58227.0,0.10658729]
[1725499730469,0.00082,58229.0,58228.0,0.120217]
[1725499730720,0.00082,58229.0,58228.0,0.42558518]
[1725499730941,0.00082,58229.0,58228.0,0.52466941]
[1725499732482,0.00082,58229.0,58228.0,0.54666941]
[1725499732702,0.00082,58229.0,58228.0,0.30623541]
[1725499732935,0.00082,58229.0,58228.0,0.29723541]
[1725499733178,0.00082,58229.0,58228.0,0.30923541]
[1725499733400,0.00082,58229.0,58228.0,0.54966941]
[1725499733621,0.00082,58229.0,58228.0,0.62670346]
[1725499734813,0.00082,58229.0,58228.0,1.00782357]
[1725499735035,0.00082,58229.0,58228.0,0.87476087]
[1725499735687,0.00082,58229.0,58228.0,0.79789409]
[1725499736594,0.120209,58232.0,58228.0,0.79789409]
[1725499736595,0.120209,58232.0,58228.0,0.92632909]
[1725499736815,0.120209,58232.0,58230.0,0.10247967]
[1725499737077,0.120209,58232.0,58231.0,0.38128738]
[1725499737313,0.120209,58232.0,58231.0,0.40066243]
[1725499737531,0.601043,58232.0,58231.0,0.5031421]
[1725499737761,0.601043,58232.0,58231.0,0.01937505]
[1725499738620,0.240417,58232.0,58231.0,0.009]
[1725499738841,0.360625,58232.0,58231.0,0.009]
[1725499739052,0.601042,58232.0,58231.0,0.02837505]
[1725499739277,0.601042,58232.0,58231.0,0.07963349]
[1725499739519,0.360625,58232.0,58231.0,0.03637505]
[1725499739755,0.120208,58232.0,58231.0,0.03637505]
[1725499740009,0.120205,58234.0,58231.0,0.56044801]
[1725499740208,0.120206,58233.0,58232.0,0.38130612]
[1725499740678,0.120206,58233.0,58232.0,0.57911214]
[1725499740924,0.120204,58234.0,58232.0,0.57911214]
[1725499741143,0.120204,58234.0,58233.0,0.38129384]
[1725499741367,0.120204,58234.0,58233.0,0.48384015]
[1725499741585,0.120204,58234.0,58233.0,0.40066277]
[1725499741799,0.01642871,58237.0,58233.0,0.09628769]
[1725499741800,1e-08,58237.0,58233.0,0.09628769]
[1725499742034,1e-08,58237.0,58233.0,0.09972181]
[1725499742035,0.120206,58234.0,58233.0,0.09972181]
[1725499742259,0.120206,58234.0,58233.0,0.07064907]
[1725499742506,0.120206,58234.0,58233.0,0.07664907]
[1725499742932,0.120206,58234.0,58233.0,0.07064907]
[1725499743149,0.120206,58234.0,58233.0,0.07364907]
[1725499743439,0.120206,58234.0,58233.0,0.14756372]
[1725499743651,0.120206,58234.0,58233.0,0.07064949]
[1725499744091,0.120206,58234.0,58233.0,0.01936893]
[1725499744306,0.120206,58234.0,58232.0,0.12718056]
[1725499744519,0.120206,58234.0,58233.0,0.01936893]
[1725499744780,0.120206,58234.0,58233.0,0.007]
[1725499745001,0.120206,58234.0,58233.0,0.02636893]
[1725499745231,0.120206,58234.0,58232.0,0.12718368]
[1725499745456,0.120206,58234.0,58233.0,0.02536893]
[1725499746127,0.360615,58234.0,58233.0,0.01936893]
[1725499746346,0.120206,58233.0,58232.0,0.12718368]
[1725499746567,0.120206,58233.0,58232.0,0.0819]
[1725499746793,0.120206,58233.0,58232.0,0.13318368]
[1725499747244,0.120206,58233.0,58232.0,0.12718368]
[1725499747920,0.120206,58233.0,58232.0,0.0759]
[1725499748150,0.120206,58233.0,58232.0,0.0839]
[1725499748367,0.120206,58233.0,58232.0,0.13518368]
[1725499748665,0.120206,58233.0,58232.0,0.0839]
[1725499749101,0.120206,58233.0,58232.0,0.008]
[1725499749102,0.601032,58233.0,58232.0,0.008]
[1725499749327,0.601032,58233.0,58232.0,0.015]
[1725499751872,0.601032,58233.0,58232.0,0.06630569]
[1725499752547,0.601032,58233.0,58232.0,0.015]
[1725499752770,0.601847,58233.0,58232.0,0.015]
[1725499752984,0.601847,58233.0,58232.0,0.1625]
[1725499753202,0.601847,58233.0,58232.0,0.21383502]
[1725499753203,0.121021,58233.0,58232.0,0.21383502]
[1725499753432,0.121021,58233.0,58232.0,0.64012594]
[1725499753433,0.361434,58233.0,58232.0,0.64012594]
[1725499753672,0.121021,58233.0,58232.0,0.25883052]
[1725499753892,0.121021,58233.0,58232.0,0.63212463]
[1725499754117,0.000815,58233.0,58232.0,0.63212463]
[1725499754331,0.121021,58233.0,58232.0,0.5641661]
[1725499754547,0.121021,58233.0,58232.0,0.66677748]
[1725499755038,0.121021,58233.0,58232.0,0.65077748]
[1725499755256,0.000815,58233.0,58232.0,0.87835678]
[1725499755475,0.000815,58233.0,58232.0,0.91200962]
[1725499755689,0.000815,58233.0,58232.0,1.14442662]
[1725499755928,0.000815,58233.0,58232.0,1.0361624]
[1725499756456,0.000815,58233.0,58232.0,1.2765794]
[1725499756568,0.000815,58233.0,58232.0,1.29270634]
[1725499756787,1e-08,58233.0,58232.0,1.04028934]
[1725499757002,1e-08,58233.0,58232.0,1.04628934]
[1725499757218,1e-08,58233.0,58232.0,1.0301624]
[1725499757441,1e-08,58233.0,58232.0,1.05929098]
[1725499757880,1e-08,58233.0,58232.0,1.04629098]
[1725499758098,1e-08,58233.0,58232.0,1.28670798]
[1725499758321,1e-08,58233.0,58232.0,1.30070798]
[1725499758546,1e-08,58233.0,58232.0,1.57112498]
[1725499758783,0.00082,58240.0,58239.0,0.61097]
[1725499759002,0.00082,58240.0,58239.0,1.9521542]
[1725499759237,0.00082,58240.0,58239.0,1.95537619]
[1725499759463,0.08286882,58252.0,58241.0,0.1486]
[1725499759685,0.08286882,58252.0,58249.0,0.0513437]
[1725499759906,0.120171,58250.0,58249.0,0.05134347]
[1725499760839,0.120171,58250.0,58248.0,0.05134347]
[1725499761305,0.120171,58250.0,58249.0,0.005]
[1725499761752,0.241519,58259.0,58255.0,0.360483]
[1725499761753,0.00081,58256.0,58255.0,0.360483]
[1725499761988,0.00081,58256.0,58255.0,1.09038805]
[1725499762224,0.00081,58256.0,58255.0,1.47838998]
[1725499762452,0.00081,58256.0,58255.0,1.49838998]
[1725499763196,0.00081,58256.0,58255.0,1.51450163]
[1725499763414,0.00081,58256.0,58255.0,1.51238998]
[1725499763639,0.00081,58256.0,58255.0,1.50038998]
[1725499763903,0.00081,58256.0,58255.0,1.51650163]
[1725499764135,0.00081,58256.0,58255.0,1.69022781]
[1725499764362,0.00081,58256.0,58255.0,1.68411616]
[1725499764842,0.00081,58256.0,58255.0,1.67211616]
[1725499765068,0.00081,58256.0,58255.0,1.68811616]
[1725499765295,0.00081,58256.0,58255.0,1.67411616]
[1725499765786,0.00081,58256.0,58255.0,1.68811616]
[1725499766020,0.00081,58256.0,58255.0,1.82766675]
[1725499766261,0.00081,58256.0,58255.0,1.68811616]
[1725499766506,0.00081,58256.0,58255.0,1.67411616]
[1725499767187,0.00081,58256.0,58255.0,1.66011616]
[1725499767417,0.00081,58256.0,58255.0,1.67411616]
[1725499767891,0.00081,58256.0,58255.0,1.66011616]
[1725499768135,0.00081,58256.0,58255.0,1.82553549]
[1725499768371,0.00081,58256.0,58255.0,1.67211616]
[1725499768628,0.00081,58256.0,58255.0,1.43832031]
[1725499768852,0.00081,58256.0,58255.0,1.19799831]
[1725499769544,0.240263,58270.0,58264.0,0.01]
[1725499769782,0.240263,58270.0,58267.0,0.05112495]
[1725499770020,0.240263,58270.0,58266.0,0.05112495]
[1725499770021,0.120136,58267.0,58266.0,0.05112495]
[1725499770466,0.120136,58267.0,58265.0,0.07668743]
[1725499770768,0.120136,58267.0,58266.0,0.05112026]
[1725499770987,0.120136,58267.0,58265.0,0.07668743]
[1725499771208,0.120136,58267.0,58266.0,0.05111888]
[1725499771439,0.120136,58267.0,58265.0,0.07668743]
[1725499771681,0.120136,58267.0,58266.0,0.0511126]
[1725499771907,0.120135,58268.0,58265.0,0.014]
[1725499772126,0.120135,58268.0,58265.0,0.06511242]
[1725499772368,0.120135,58268.0,58266.0,0.014]
[1725499773284,0.120135,58268.0,58264.0,0.01]
[1725499773509,0.120135,58268.0,58266.0,0.028]
[1725499774433,0.120135,58268.0,58266.0,0.014]
[1725499774864,0.120135,58268.0,58266.0,0.028]
[1725499775089,0.120136,58267.0,58266.0,0.014]
[1725499776407,0.120136,58267.0,58266.0,0.012]
[1725499777082,0.120139,58266.0,58262.0,0.08109769]
[1725499777303,0.120139,58266.0,58262.0,0.07109769]
[1725499777529,0.120139,58266.0,58262.0,0.02]
[1725499777753,0.120146,58262.0,58261.0,0.05109769]
[1725499777972,0.120148,58261.0,58260.0,0.05109769]
[1725499778209,0.120148,58261.0,58257.0,0.08664653]
[1725499778210,0.120148,58261.0,58258.0,0.07664653]
[1725499778693,0.24029,58263.0,58260.0,0.05110163]
[1725499778910,0.24029,58263.0,58255.0,0.24089538]
[1725499778911,0.240278,58266.0,58259.0,0.05453423]
[1725499779135,0.120139,58266.0,58262.0,0.0609]
[1725499779355,0.000815,58267.0,58262.0,0.06433239]
[1725499779564,0.120138,58266.0,58262.0,0.06433239]
[1725499779796,0.120138,58266.0,58262.0,0.07833239]
[1725499780461,0.120951,58267.0,58262.0,0.06433239]
[1725499780689,0.120951,58267.0,58262.0,0.19747839]
[1725499781158,0.000815,58267.0,58263.0,0.120143]
[1725499782071,0.000815,58267.0,58262.0,0.13900163]
[1725499782302,0.000815,58267.0,58263.0,0.00343233]
[1725499782530,0.000815,58267.0,58263.0,0.12357633]
[1725499782752,0.240278,58266.0,58263.0,0.06410163]
[1725499782976,0.000815,58267.0,58262.0,0.12600163]
[1725499783207,0.000815,58267.0,58262.0,0.13900163]
[1725499783433,0.000815,58267.0,58263.0,0.0227095]
[1725499783681,0.120952,58267.0,58263.0,0.0227095]
[1725499783891,0.120952,58267.0,58263.0,0.01927717]
[1725499784785,0.120952,58267.0,58263.0,0.03327717]
[1725499785059,0.120952,58267.0,58263.0,0.04727717]
[1725499785276,0.120952,58267.0,58263.0,0.03327717]
[1725499785493,0.120952,58267.0,58263.0,0.04627717]
[1725499785715,0.000815,58267.0,58263.0,0.03327717]
[1725499785940,0.120142,58265.0,58263.0,0.03327717]
[1725499786171,0.120142,58265.0,58263.0,0.04727717]
[1725499786395,0.120142,58265.0,58263.0,0.03327717]
[1725499786617,0.120142,58265.0,58263.0,0.01927717]
[1725499786853,0.000815,58267.0,58263.0,0.04627717]
[1725499787301,0.240277,58266.0,58263.0,0.04627717]
[1725499787534,0.240277,58266.0,58263.0,0.03227717]
[1725499787730,0.12014,58265.0,58263.0,0.04627717]
[1725499788184,0.12014,58265.0,58263.0,0.03227717]
[1725499788401,0.12014,58265.0,58263.0,0.01927717]
[1725499788622,0.120142,58264.0,58263.0,0.03327717]
[1725499788888,0.120142,58264.0,58263.0,0.04727717]
[1725499789109,0.120142,58264.0,58263.0,0.03327717]
[1725499789319,0.120142,58264.0,58263.0,0.04890517]
[1725499789753,0.120142,58264.0,58263.0,0.02090517]
[1725499790176,0.120142,58264.0,58263.0,0.03490517]
[1725499790596,0.120142,58264.0,58263.0,0.02090517]
[1725499790801,0.240277,58266.0,58263.0,0.02090517]
[1725499791017,0.120141,58265.0,58263.0,0.04890517]
[1725499791239,0.120142,58264.0,58263.0,0.04890517]
[1725499791498,0.120142,58264.0,58263.0,0.02090517]
[1725499791714,0.120142,58264.0,58263.0,0.04890517]
[1725499791933,0.12014,58265.0,58263.0,0.03490517]
[1725499792154,0.120138,58266.0,58263.0,0.03490517]
[1725499792361,0.240278,58266.0,58263.0,0.04890517]
[1725499792584,0.240278,58266.0,58263.0,0.03490517]
[1725499792876,0.240278,58266.0,58263.0,0.04890517]
[1725499793071,0.120141,58265.0,58263.0,0.03490517]
[1725499793578,0.000815,58267.0,58263.0,0.16904817]
[1725499793798,0.120951,58267.0,58263.0,0.16904817]
[1725499794009,0.120951,58267.0,58263.0,0.15504817]
[1725499794427,0.120951,58267.0,58263.0,0.16904817]
[1725499794665,0.241077,58270.0,58263.0,0.04890517]
[1725499794917,0.120139,58266.0,58263.0,0.03490517]
[1725499795112,0.120139,58266.0,58263.0,0.04890517]
[1725499795326,0.120139,58266.0,58263.0,0.03490517]
[1725499795548,0.360408,58268.0,58263.0,0.03490517]
[1725499795959,0.360408,58268.0,58263.0,0.02090517]
[1725499796172,0.120139,58266.0,58263.0,0.02090517]
[1725499796827,0.12014,58265.0,58263.0,0.03490517]
[1725499797253,0.120138,58266.0,58263.0,0.02090517]
[1725499797475,0.120138,58266.0,58263.0,0.03490517]
[1725499797691,0.120138,58266.0,58263.0,0.04890517]
[1725499797905,0.120138,58266.0,58263.0,0.03490517]
[1725499798118,0.120138,58266.0,58263.0,0.02090517]
[1725499798345,0.12014,58265.0,58263.0,0.03490517]
[1725499798581,0.360413,58267.0,58263.0,0.03490517]
[1725499798832,0.120138,58266.0,58263.0,0.03490517]
[1725499799068,0.120138,58266.0,58263.0,0.04890517]
[1725499799333,0.120138,58266.0,58263.0,0.03490517]
[1725499799560,0.120138,58266.0,58263.0,0.08604153]
[1725499799778,0.120141,58265.0,58263.0,0.10004153]
[1725499800011,0.120139,58266.0,58263.0,0.10004153]
[1725499800521,0.120139,58266.0,58265.0,0.05113636]
[1725499800978,0.12014,58265.0,58264.0,0.05113636]
[1725499801209,0.120142,58264.0,58263.0,0.03490517]
[1725499801497,0.360427,58264.0,58263.0,0.03390517]
[1725499801791,0.600712,58264.0,58263.0,0.03390517]
[1725499801988,0.600712,58264.0,58263.0,0.02090517]
[1725499802465,0.600712,58264.0,58263.0,0.09220517]
[1725499802466,0.120142,58264.0,58263.0,0.09220517]
[1725499802716,0.240278,58266.0,58263.0,0.15870517]
[1725499802936,0.120141,58265.0,58263.0,0.15870517]
[1725499803172,0.10770586,58270.0,58263.0,0.20984153]
[1725499803173,0.24027,58268.0,58263.0,0.20984153]
[1725499803402,0.12014,58265.0,58263.0,0.15870517]
[1725499803633,0.12014,58265.0,58264.0,0.07670455]
[1725499803876,0.120138,58266.0,58264.0,0.07670455]
[1725499804113,0.120953,58266.0,58264.0,0.07670455]
[1725499804567,0.120953,58266.0,58265.0,0.38110671]
[1725499804789,0.000815,58266.0,58265.0,0.38110671]
[1725499805019,0.000815,58266.0,58265.0,0.50894763]
[1725499805514,0.000815,58266.0,58265.0,0.38110671]
[1725499805982,0.000815,58266.0,58265.0,0.38710671]
[1725499807231,0.000815,58266.0,58265.0,0.88582771]
[1725499807489,0.000815,58266.0,58265.0,1.66962413]
[1725499807697,0.0001338,58266.0,58265.0,2.18411256]
[1725499807947,0.0001338,58266.0,58265.0,2.22600038]
[1725499808426,0.0001338,58266.0,58265.0,2.19322357]
[1725499808896,0.0001338,58266.0,58265.0,2.20122357]
[1725499809126,0.0001338,58266.0,58265.0,2.21522357]
[1725499810036,0.0001338,58266.0,58265.0,2.23520324]
[1725499810273,0.0001338,58266.0,58265.0,1.96799581]
[1725499810738,0.0001338,58266.0,58265.0,1.95188495]
[1725499810979,0.0001338,58266.0,58265.0,1.96799432]
[1725499811213,0.0001338,58266.0,58265.0,1.96799442]
[1725499811435,0.0001338,58266.0,58265.0,2.23909248]
[1725499811681,0.0001338,58266.0,58265.0,2.25520194]
[1725499813271,0.0001338,58266.0,58265.0,2.85520194]
[1725499814191,0.0001338,58266.0,58265.0,2.83909248]
[1725499814423,0.0001338,58266.0,58265.0,2.85520102]
[1725499816359,0.0001338,58266.0,58265.0,2.85519837]
[1725499816592,0.0001338,58266.0,58265.0,3.08293554]
[1725499817531,0.0001338,58266.0,58265.0,3.08609873]
[1725499817776,0.0001338,58266.0,58265.0,3.11509513]